Cogmind - Beta 13 @@@ ROGUE MODE // 2024.05.06 @ 02:56:31 Player: Toa of Guts Result: Destroyed by P-70 Sage with High-powered Shock Rifle Performance ------------- Evolutions (6) 3000 Regions Visited (13) 2600 Robots Destroyed (152) 760 Value Destroyed (5765) 5765 Prototype IDs (36) 720 Alien Tech Used (0) 0 Bonus (965) 965 TOTAL SCORE: 13810 Bonus ------- High Alert Combat Kills 665 Aligned with FarCom 300 Cogmind --------- Core Integrity 0/1150 Matter 1/300 Energy 30/100 System Corruption 1% Temperature Cool (0) Movement Rolling (150) Ox3 Location -4/Upper Caves Parts ------- > --- POWER (2) -------- (None) > --- PROPULSION (5) --- Centrium Wheel > --- UTILITY (8) ------ Medium Storage Unit Advanced Visual Processing Unit Improved Shield Generator Advanced Force Field Long-range Tractor Beam > --- WEAPON (4) ------- Improved Arc Projector Quantum Rifle (fused) AWS/Gauss > --- INVENTORY (10) --- (None) Peak State ------------ > --- POWER ------------ Light Angular Momentum Engine Cooled Antimatter Reactor > --- PROPULSION ------- Flexi-carbon Leg Flexi-carbon Leg Flexi-carbon Leg Flexi-carbon Leg Flexi-carbon Leg > --- UTILITY ---------- High-capacity Storage Unit Advanced Visual Processing Unit Advanced Targeting Computer Recoil Nullifier Hardened Medium Armor Plating Drone Bay > --- WEAPON ----------- PD Laser Mass Driver > --- INVENTORY -------- Micro Nuclear Core Light Fission Core Improved Titanium Leg Flexi-carbon Leg High-capacity Matter Pod Kinecellerator Long-range Tractor Beam Advanced Plasma Cannon Autogun Flak Gun Heavy Machine Gun Enhanced Coil Gun AWS/Gauss Mini Assault Cannon Heavy Gauss Cannon Ragnarok Missile Launcher Ragnarok Missile Launcher Ragnarok Missile Launcher Katana [Rating: 98] Favorites ----------- Power Improved Ion Engine Engine Improved Ion Engine Power Core Light Nuclear Core Reactor Cooled Antimatter Reactor Propulsion Light Treads Treads Light Treads Leg Flexi-carbon Leg Wheel Armored Huge Wheel Utility Large Storage Unit Device Seismic Detector Storage Large Storage Unit Processor Advanced Visual Processing Unit Protection Core Shielding Weapon Autogun Energy Gun Medium Laser Energy Cannon Advanced Plasma Cannon Ballistic Gun Autogun Ballistic Cannon Mini Assault Cannon Launcher Mini Grenade Launcher Slashing Weapon Katana Build | -11 -10 -10 -9 -9 -9 -8 -8 -7 -6 -5 -4 -4 -4 ------- Run | Yrd Mat Min Mat Min Exi Min Mat Fac Fac Fac Fac Upp Upp Slots Evolved 12 | . . . 2 . . . 2 2 2 2 2 . . Power 1 | . . . . . . . . . . 1 . . . Propulsion 3 | . . . 1 . . . . 1 . 1 . . . Utility 6 | . . . 1 . . . 1 . 2 . 2 . . Weapon 2 | . . . . . . . 1 1 . . . . . Parts Attached 185 | 5 9 3 33 8 1 . 15 26 9 57 11 3 5 Power 20 | 1 2 1 3 1 . . 1 2 . 7 2 . . Engine 11 | 1 2 1 3 1 . . 1 1 . 1 . . . Core 6 | . . . . . . . . 1 . 5 . . . Reactor 3 | . . . . . . . . . . 1 2 . . Propulsion 34 | 1 3 . 8 . . . 2 7 . 10 2 1 . Treads 19 | . 3 . 8 . . . 2 5 . 1 . . . Leg 10 | 1 . . . . . . . . . 9 . . . Wheel 5 | . . . . . . . . 2 . . 2 1 . Hover . | . . . . . . . . . . . . . . Flight . | . . . . . . . . . . . . . . Utility 51 | 1 3 . 8 4 . . 2 8 3 15 3 2 2 Device 25 | . 1 . 5 2 . . . 3 . 9 2 1 2 Storage 6 | 1 1 . 1 . . . . . . 1 1 1 . Processor 3 | . . . . . . . . 2 1 . . . . Hackware . | . . . . . . . . . . . . . . Protection 17 | . 1 . 2 2 . . 2 3 2 5 . . . Artifact . | . . . . . . . . . . . . . . Weapon 80 | 2 1 2 14 3 1 . 10 9 6 25 4 . 3 Energy Gun 13 | 2 1 1 4 . . . 1 . . 1 1 . 2 Energy Cannon 2 | . . . 1 . . . . . . 1 . . . Ballistic Gun 38 | . . . 5 2 . . 7 5 2 13 3 . 1 Ballistic Cannon 7 | . . . . . . . . 1 1 5 . . . Launcher 13 | . . 1 4 1 . . 2 . 1 4 . . . Special Weapon . | . . . . . . . . . . . . . . Impact Weapon . | . . . . . . . . . . . . . . Slashing Weapon 7 | . . . . . 1 . . 3 2 1 . . . Piercing Weapon . | . . . . . . . . . . . . . . Special Melee Weapon . | . . . . . . . . . . . . . . Unidentified Prototypes 5 | . . . 2 . . . . . . 3 . . . Parts Lost 62 | . . 2 7 1 . . 6 2 4 26 14 . . Power 10 | . . 1 1 . . . 1 . . 3 4 . . Propulsion 16 | . . . 3 . . . 2 2 . 6 3 . . Utility 15 | . . . 2 1 . . . . 2 8 2 . . Weapon 21 | . . 1 1 . . . 3 . 2 9 5 . . Highest Loss Streak 19 | . . 2 4 1 . . 2 1 4 19 7 . . To Critical Strikes 3 | . . . . . . . 1 . . 1 1 . . Average Slot Usage (%) 88 | . 97 99 97 99 90 88 97 96 92 87 41 19 47 Engine 7 | . 14 14 10 11 11 11 8 6 . 4 2 . . Treads 20 | . 25 28 32 33 33 33 25 18 13 3 . . . Leg 3 | . 1 . . . . . . . . 19 6 . . Wheel 2 | . . . . . . . . 7 6 1 2 5 5 Device 9 | . 13 . 11 14 11 11 9 7 12 7 2 3 15 Storage 8 | . 14 14 11 11 11 11 9 7 6 4 2 5 5 Processor 3 | . . . . . . . . 4 13 11 9 5 5 Protection 7 | . . 14 9 7 11 11 17 9 6 6 . . . Energy Gun 7 | . 28 21 11 11 1 . 4 . . . 6 . 10 Ballistic Gun 10 | . . . 9 6 2 . 16 26 20 12 2 . 5 Slashing Weapon 1 | . . . . . 9 11 4 2 2 . . . . Naked Turns . | . . . . . . . . . . . . . . Heaviest Build 104 | 14 34 35 37 35 35 31 43 50 50 104 60 14 51 Greatest Support 100 | 10 40 40 69 66 66 66 66 86 28 100 30 16 16 Greatest Overweight (x) 21 | 1 1 . . . . . . 3 1 21 8 . 3 Average Overweight (x) . | . . . . . . . . . 1 . . . 3 Largest Inventory Capacity 20 | 8 15 15 15 15 15 15 15 15 15 20 10 10 10 Average Capacity 14 | 7 14 15 15 15 15 15 15 15 15 16 7 9 10 Most Carried 20 | 7 15 15 15 15 15 15 15 15 14 20 10 6 5 Average Carried 13 | 5 11 14 14 15 14 15 14 14 13 14 6 5 . Final Capacity 15 | 8 15 15 15 15 15 15 15 15 15 5 5 10 10 Final Carried 15 | 7 15 15 15 15 15 15 15 15 13 5 5 6 . Class Distribution -------------------- 35% | Mutant 27% | Scavenger-Mutant 19% | Skirmisher 8% | Tank 6% | Gunner Dominant Class ---------------- Mutant | -10/Materials Mutant | -10/Mines Scavenger-Mutant | -9/Materials Scavenger-Mutant | -9/Mines Scavenger-Mutant | -9/Exiles Scavenger-Mutant | -8/Mines Scavenger-Mutant | -8/Materials Skirmisher | -7/Factory Skirmisher | -6/Factory Gunner | -5/Factory Mutant | -4/Factory Mutant | -4/Upper Caves Mutant | -4/Upper Caves Resources | -11 -10 -10 -9 -9 -9 -8 -8 -7 -6 -5 -4 -4 -4 ----------- Run | Yrd Mat Min Mat Min Exi Min Mat Fac Fac Fac Fac Upp Upp Matter Collected 4922 | 217 457 54 626 294 . . 381 1278 59 1418 104 34 . Remotely 1124 | . . . . . . . . 245 59 820 . . . Salvage Created 5381 | . 429 103 949 296 . . 572 1161 35 1732 104 . . Parts 301 | . 24 4 58 17 . . 29 71 2 92 4 . . Haulers Intercepted 7 | . 2 . 1 . . . 1 2 . 1 . . . Recyclers Shooed 1 | . . . . . . . 1 . . . . . . Parts Field Recycled . | . . . . . . . . . . . . . . Retrieved Matter . | . . . . . . . . . . . . . . Parts Self-Destructed . | . . . . . . . . . . . . . . Prevented . | . . . . . . . . . . . . . . Kills | -11 -10 -10 -9 -9 -9 -8 -8 -7 -6 -5 -4 -4 -4 ------- Run | Yrd Mat Min Mat Min Exi Min Mat Fac Fac Fac Fac Upp Upp Combat Hostiles Destroyed 123 | . 8 4 28 9 . . 11 17 1 43 2 . . Guns 90 | . 8 3 16 7 . . 9 15 1 30 1 . . Cannons 9 | . . . . . . . . 2 . 7 . . . AOE 23 | . . 1 12 2 . . 2 . . 6 . . . Classes Destroyed 16 | . 4 . 2 2 . . 3 2 . 3 . . . Worker 4 | . . . . . . . 1 1 . 2 . . . Builder 3 | . . . 2 . . . . . . 1 . . . Tunneler 1 | . . . . . . . . 1 . . . . . Hauler 7 | . 2 . 1 . . . 1 2 . 1 . . . Recycler 2 | . . . . . . . 1 1 . . . . . Watcher 12 | . 3 . 3 . . . . 4 . 2 . . . Swarmer 31 | . 3 2 8 2 . . 3 . . 13 . . . Grunt 45 | . 5 2 12 5 . . 4 10 . 7 . . . Brawler 2 | . . . . 1 . . 1 . . . . . . Duelist 2 | . . . . 1 . . . . . 1 . . . Protector 1 | . . . . . . . . . . 1 . . . Sentry 14 | . . . 8 . . . 1 3 . 2 . . . Specialist 4 | . . . . . . . . . . 4 . . . Hunter 8 | . . . . . . . 2 1 . 5 . . . Programmer 15 | . . . . . . . . 3 1 9 2 . . Heavy 1 | . . . . . . . . . . 1 . . . Best Kill Streak 15 | . 3 3 11 3 . . 3 6 1 15 1 . . Combat Bots Only 14 | . 3 3 10 3 . . 3 3 1 14 1 . . Max Kills in Single Turn 4 | . 1 1 3 2 . . 2 1 1 4 1 . . Gunslinging . | . . . . . . . . . . . . . . Exploded 3 | . . 1 3 2 . . 2 . . 3 . . . Melee . | . . . . . . . . . . . . . . Uniques/NPCs Destroyed . | . . . . . . . . . . . . . . Combat | -11 -10 -10 -9 -9 -9 -8 -8 -7 -6 -5 -4 -4 -4 -------- Run | Yrd Mat Min Mat Min Exi Min Mat Fac Fac Fac Fac Upp Upp Hostile Shots Fired 1101 | . 39 45 165 21 . . 72 163 91 308 188 2 7 Missed 316 | . 8 14 47 8 . . 10 61 24 83 60 1 . Damage Taken 12733 | . 377 647 1541 156 . . 811 1171 1040 4515 2314 18 143 Core 2659 | . 138 108 151 31 . . 72 80 29 900 1130 . 20 Absorbed by Shields 6 | . . . . . . . . . . . . 6 . Redirected to Shielding 228 | . . . . 4 . . 16 60 . 148 . . . Ignored by Resistances 36 | . . . . . . . 36 . . . . . . Core Remaining (%) 62 | 100 . 1 . . . 54 86 88 96 10 . . . Volleys Fired 360 | . 37 17 86 17 . . 41 58 6 81 16 . 1 Largest 4 | . 2 2 2 2 . . 3 4 4 4 4 . 2 Hottest 196 | . 100 100 79 79 . . 79 99 102 196 194 . 159 Shots Fired 888 | . 72 23 157 32 . . 93 202 20 247 40 . 2 Gun 779 | . 72 22 142 30 . . 92 193 19 167 40 . 2 Cannon 82 | . . . . . . . . 9 1 72 . . . Launcher 27 | . . 1 15 2 . . 1 . . 8 . . . Special . | . . . . . . . . . . . . . . Kinetic 622 | . . . 71 15 . . 78 202 20 228 8 . . Thermal 238 | . 72 22 71 15 . . 14 . . 11 32 . 1 Explosive 27 | . . 1 15 2 . . 1 . . 8 . . . Electromagnetic 1 | . . . . . . . . . . . . . 1 Robot Hit Streak 25 | . 13 5 25 7 . . 11 13 7 19 6 . 4 Robot Miss Streak 7 | . 7 4 2 1 . . 3 6 4 5 3 . 1 Penetration Max . | . . . . . . . . . . . . . . Secondary Targets 6 | . . 1 . . . . . 3 1 . 1 . . Max Gunslinging Chain 1 | . . 1 . . . . . 1 1 . 1 . . Autonomous 93 | . . . . . . . . . . 93 . . . Shots Hit Robots 610 | . 49 13 119 24 . . 63 124 16 173 28 . 1 Core Hits 310 | . 22 7 53 14 . . 27 61 6 110 10 . . Critical Kills 2 | . . . . 1 . . . . . 1 . . . Critical Parts Destroyed . | . . . . . . . . . . . . . . Critical Strikes 24 | . 6 . 9 2 . . . . . 4 3 . . Burn 19 | . 6 . 9 1 . . . . . . 3 . . Destroy 2 | . . . . 1 . . . . . 1 . . . Blast 3 | . . . . . . . . . . 3 . . . Melee Attacks 17 | . . . . . . . 2 7 8 . . . . Impact . | . . . . . . . . . . . . . . Slashing 17 | . . . . . . . 2 7 8 . . . . Piercing . | . . . . . . . . . . . . . . Sneak Attacks . | . . . . . . . . . . . . . . Combat Hostiles . | . . . . . . . . . . . . . . Follow-up Attacks . | . . . . . . . . . . . . . . Damage Inflicted 15858 | . 627 266 2759 604 . . 1034 2199 316 7457 594 . 2 Guns 10421 | . 624 149 1619 357 . . 944 2005 316 3811 594 . 2 Cannons 1594 | . . . . . . . . 188 . 1406 . . . Explosions 3825 | . . 117 1140 239 . . 89 . . 2240 . . . Melee . | . . . . . . . . . . . . . . Ramming 18 | . 3 . . 8 . . 1 6 . . . . . Kinetic 9436 | . . . 857 168 . . 817 2193 316 4944 141 . . Thermal 3038 | . 624 149 762 189 . . 127 . . 734 453 . . Explosive 3364 | . . 117 1140 239 . . 89 . . 1779 . . . Electromagnetic 2 | . . . . . . . . . . . . . 2 Impact . | . . . . . . . . . . . . . . Slashing . | . . . . . . . . . . . . . . Piercing . | . . . . . . . . . . . . . . Highest Corruption 6 | . . . 4 4 4 4 . 2 3 6 1 1 1 Average Corruption 3 | . . . 3 4 4 4 . 1 2 3 1 1 1 Corruption Purged . | . . . . . . . . . . . . . . Corruption Blocked . | . . . . . . . . . . . . . . Effects 90 | . . . 25 22 11 4 . 4 . 15 . 6 3 Message Errors 24 | . . . 10 6 1 1 . 1 . 2 . 3 . Matter Fused 35 | . . . 7 10 7 1 . 2 . 4 . 2 2 Heat Flow Errors 8 | . . . 2 2 . 1 . . . 3 . . . Energy Discharges 4 | . . . 1 . . 1 . 1 . 1 . . . Parts Fused 1 | . . . . . . . . . . . . . 1 Data Loss (minor) 9 | . . . 2 2 3 . . . . 1 . 1 . Data Loss (major) 3 | . . . . 2 . . . . . 1 . . . Misfires 1 | . . . . . . . . . . 1 . . . Alerts 4 | . . . 3 . . . . . . 1 . . . Weapon Failures 1 | . . . . . . . . . . 1 . . . Overload Shots . | . . . . . . . . . . . . . . Overflow Damage 129 | . . . 20 23 . . . 15 . 71 . . . Projectiles 44 | . . . . . . . . 15 . 29 . . . Explosions 85 | . . . 20 23 . . . . . 42 . . . Melee . | . . . . . . . . . . . . . . Knockbacks 14 | . . . . . . . . 1 . 13 . . . Impact . | . . . . . . . . . . . . . . Kinetic 14 | . . . . . . . . 1 . 13 . . . Secondary . | . . . . . . . . . . . . . . Self-Inflicted Damage 206 | . . 26 93 . . . . 3 . 84 . . . Shots 5 | . . 1 3 . . . . . . 1 . . . Rammed 4 | . 1 . . 1 . . 1 1 . . . . . Targets Rammed 4 | . 1 . . 1 . . 1 1 . . . . . Kicked . | . . . . . . . . . . . . . . Crushed . | . . . . . . . . . . . . . . Highest Temperature 548 | . 264 372 303 268 . 123 99 241 90 475 548 . 30 Average Temperature 97 | . 83 196 65 73 . 71 36 58 40 150 208 . 20 Received Heat Transfer 2185 | . 159 144 528 78 . . 180 360 153 550 27 6 . Effects 29 | . 4 3 . . . . . . . 14 8 . . Shutdowns 3 | . . . . . . . . . . 2 1 . . Energy Bleed 2 | . . 1 . . . . . . . . 1 . . Interference 13 | . 4 . . . . . . . . 4 5 . . Matter Decay 1 | . . . . . . . . . . . 1 . . Short Circuit 3 | . . 1 . . . . . . . 2 . . . Damage (minor) 1 | . . 1 . . . . . . . . . . . Damage (major) 6 | . . . . . . . . . . 6 . . . Siege Activations . | . . . . . . . . . . . . . . Robots Corrupted . | . . . . . . . . . . . . . . Combat Hostiles . | . . . . . . . . . . . . . . Parts Fried . | . . . . . . . . . . . . . . Impact Corruptions . | . . . . . . . . . . . . . . Robots Melted 1 | . . . . . . . . . . . 1 . . Combat Hostiles 1 | . . . . . . . . . . . 1 . . Parts Melted 14 | . 1 1 9 . . . . . . . 3 . . Heat Transferred 7803 | . 2294 397 2738 555 . . 333 . . 450 1036 . . Parts Sabotaged . | . . . . . . . . . . . . . . Parts Stolen . | . . . . . . . . . . . . . . Parts Stripped . | . . . . . . . . . . . . . . Power Chain Reactions . | . . . . . . . . . . . . . . Alert | -11 -10 -10 -9 -9 -9 -8 -8 -7 -6 -5 -4 -4 -4 ------- Run | Yrd Mat Min Mat Min Exi Min Mat Fac Fac Fac Fac Upp Upp Peak Influence 868 | . 209 125 466 173 . . 187 225 83 868 425 . . Initial 372 | . . . 39 160 . . . 16 65 . 372 . . Average 165 | . 52 57 207 93 . . 68 63 51 478 383 . . Maximum Alert Level 3 | . 1 . 2 . . . . 1 . 3 2 . . Low Security (%) 75 | 100 95 100 49 100 . 100 100 99 100 26 . . . Level 1 11 | . 4 . 33 . . . . . . 15 77 . . Level 2 5 | . . . 17 . . . . . . 11 22 . . Level 3 7 | . . . . . . . . . . 47 . . . Level 4 . | . . . . . . . . . . . . . . Level 5 . | . . . . . . . . . . . . . . High Security . | . . . . . . . . . . . . . . Max Security . | . . . . . . . . . . . . . . Squads Dispatched 24 | . . . 3 . . . . 6 2 13 . . . Investigation 2 | . . . 1 . . . . 1 . . . . . Extermination 5 | . . . . . . . . 2 . 3 . . . Reinforcement 12 | . . . 2 . . . . 2 2 6 . . . Assault 2 | . . . . . . . . . . 2 . . . Garrison 3 | . . . . . . . . 1 . 2 . . . Intercept . | . . . . . . . . . . . . . . Searches Triggered . | . . . . . . . . . . . . . . Construction Impeded 3 | . . . 1 . . . . . . 2 . . . Haulers Reinforced . | . . . . . . . . . . . . . . Active Scanning Responses . | . . . . . . . . . . . . . . Cargo Convoy Interrupts 1 | . . . . . . . . . . 1 . . . Stealth | -11 -10 -10 -9 -9 -9 -8 -8 -7 -6 -5 -4 -4 -4 --------- Run | Yrd Mat Min Mat Min Exi Min Mat Fac Fac Fac Fac Upp Upp Distress Signals 8 | . 1 2 2 . . . 3 . . . . . . Communications Jammed . | . . . . . . . . . . . . . . Distress Signals . | . . . . . . . . . . . . . . Times Spotted 207 | . 21 7 42 11 . . 14 25 9 61 15 1 1 Peak Tracking Total 11 | . 4 3 11 3 . . 4 3 7 11 8 1 1 Tactical Retreats 10 | . 2 . 3 1 . . . . . 1 2 1 . Traps | -11 -10 -10 -9 -9 -9 -8 -8 -7 -6 -5 -4 -4 -4 ------- Run | Yrd Mat Min Mat Min Exi Min Mat Fac Fac Fac Fac Upp Upp Traps Triggered 7 | . . . 3 . . . . 2 . . 2 . . Indirectly . | . . . . . . . . . . . . . . Trap Hack Attempts . | . . . . . . . . . . . . . . Triggered . | . . . . . . . . . . . . . . Disarmed . | . . . . . . . . . . . . . . Reprogrammed . | . . . . . . . . . . . . . . Reused . | . . . . . . . . . . . . . . Traps Extracted . | . . . . . . . . . . . . . . Installed . | . . . . . . . . . . . . . . Triggered . | . . . . . . . . . . . . . . Machines | -11 -10 -10 -9 -9 -9 -8 -8 -7 -6 -5 -4 -4 -4 ---------- Run | Yrd Mat Min Mat Min Exi Min Mat Fac Fac Fac Fac Upp Upp Machines Disabled 15 | . . . . . . . . . . 15 . . . Max in Single Turn 4 | . . . . . . . . . . 4 . . . Garrison Access 1 | . . . . . . . . . . 1 . . . Machines Repaired . | . . . . . . . . . . . . . . Machines Dismantled . | . . . . . . . . . . . . . . Machines Sabotaged . | . . . . . . . . . . . . . . Overloaded Fab Kills . | . . . . . . . . . . . . . . Hacking | -11 -10 -10 -9 -9 -9 -8 -8 -7 -6 -5 -4 -4 -4 --------- Run | Yrd Mat Min Mat Min Exi Min Mat Fac Fac Fac Fac Upp Upp Machines Accessed 31 | . 8 . 8 . 1 . 4 4 2 2 2 . . Terminals 26 | . 8 . 7 . . . 4 3 2 1 1 . . Fabricators . | . . . . . . . . . . . . . . Repair Stations 1 | . . . . . . . . . . . 1 . . Recycling Units . | . . . . . . . . . . . . . . Scanalyzers 1 | . . . 1 . . . . . . . . . . Garrison Access 2 | . . . . . . . . 1 . 1 . . . Total Hacks 83 | . 29 . 21 . 1 . 12 7 5 6 2 . . Successful 32 | . 11 . 6 . 1 . 6 1 2 4 1 . . Failed 51 | . 18 . 15 . . . 6 6 3 2 1 . . Catastrophic 13 | . 3 . 5 . . . 2 1 1 . 1 . . Database Lockouts . | . . . . . . . . . . . . . . Manual 23 | . 1 . 9 . 1 . 7 3 1 . 1 . . Terminals 76 | . 29 . 20 . . . 12 4 5 5 1 . . Fabricators . | . . . . . . . . . . . . . . Repair Stations 1 | . . . . . . . . . . . 1 . . Recycling Units . | . . . . . . . . . . . . . . Scanalyzers 1 | . . . 1 . . . . . . . . . . Garrison Access 4 | . . . . . . . . 3 . 1 . . . Terminal Hacks 29 | . 11 . 5 . 1 . 5 1 2 4 . . . Record 1 | . . . . . . . . . . 1 . . . Robot Analysis 1 | . 1 . . . . . . . . . . . . Prototype ID Bank 3 | . 1 . . . . . 1 . 1 . . . . Branch Access Points 1 | . . . 1 . . . . . . . . . . Alert Level 4 | . 2 . . . . . 1 . 1 . . . . Unreport Threat 5 | . 1 . 1 . . . . 1 . 2 . . . Locate Traps 6 | . 3 . 2 . . . 1 . . . . . . Security Status 1 | . 1 . . . . . . . . . . . . Recall Investigation 1 | . 1 . . . . . . . . . . . . Hauler Manifests 1 | . 1 . . . . . . . . . . . . Zone Layout 4 | . . . 1 . . . 2 . . 1 . . . Derelict Proto ID Bank 1 | . . . . . 1 . . . . . . . . Fabricator Hacks . | . . . . . . . . . . . . . . Repair Station Hacks 1 | . . . . . . . . . . . 1 . . Refit 1 | . . . . . . . . . . . 1 . . Recycling Unit Hacks . | . . . . . . . . . . . . . . Scanalyzer 1 | . . . 1 . . . . . . . . . . Insert Component 1 | . . . 1 . . . . . . . . . . Garrison Access Hacks . | . . . . . . . . . . . . . . Unauthorized Hacks 1 | . . . . . . . 1 . . . . . . Terminals 1 | . . . . . . . 1 . . . . . . Assimilate 1 | . . . . . . . 1 . . . . . . Fabricators . | . . . . . . . . . . . . . . Repair Stations . | . . . . . . . . . . . . . . Recycling Units . | . . . . . . . . . . . . . . Scanalyzers . | . . . . . . . . . . . . . . Garrison Access . | . . . . . . . . . . . . . . Data Cores Recovered . | . . . . . . . . . . . . . . Used . | . . . . . . . . . . . . . . Hacking Detections 28 | . 8 . 7 . . . 4 4 2 2 1 . . Full Trace Events 3 | . 2 . . . . . . 1 . . . . . Feedback Events . | . . . . . . . . . . . . . . Feedback Blocked . | . . . . . . . . . . . . . . Robot Schematics Acquired . | . . . . . . . . . . . . . . Robots Built . | . . . . . . . . . . . . . . Authchips . | . . . . . . . . . . . . . . Time . | . . . . . . . . . . . . . . Total Robot Build Rating . | . . . . . . . . . . . . . . Part Schematics Acquired . | . . . . . . . . . . . . . . Parts Built . | . . . . . . . . . . . . . . Authchips . | . . . . . . . . . . . . . . Time . | . . . . . . . . . . . . . . Total Part Build Rating . | . . . . . . . . . . . . . . Parts Repaired . | . . . . . . . . . . . . . . Time . | . . . . . . . . . . . . . . Parts Recycled . | . . . . . . . . . . . . . . Recycled Matter . | . . . . . . . . . . . . . . Retrieved Matter . | . . . . . . . . . . . . . . Retrieved Components . | . . . . . . . . . . . . . . Parts Scanalyzed . | . . . . . . . . . . . . . . Part Schematics Acquired . | . . . . . . . . . . . . . . Parts Damaged . | . . . . . . . . . . . . . . Bothacking | -11 -10 -10 -9 -9 -9 -8 -8 -7 -6 -5 -4 -4 -4 ------------ Run | Yrd Mat Min Mat Min Exi Min Mat Fac Fac Fac Fac Upp Upp Used RIF Installer . | . . . . . . . . . . . . . . Robots Hacked . | . . . . . . . . . . . . . . Non-combat . | . . . . . . . . . . . . . . Combat . | . . . . . . . . . . . . . . Robot Hacks Applied . | . . . . . . . . . . . . . . Relay Couplers Released 2 | . . . . . . . . . . 2 . . . Machine Destruction 2 | . . . . . . . . . . 2 . . . Fabnet Peak Effective % . | . . . . . . . . . . . . . . Robots Rewired . | . . . . . . . . . . . . . . Allies Hacked . | . . . . . . . . . . . . . . Hacks Repelled . | . . . . . . . . . . . . . . Allies | -11 -10 -10 -9 -9 -9 -8 -8 -7 -6 -5 -4 -4 -4 -------- Run | Yrd Mat Min Mat Min Exi Min Mat Fac Fac Fac Fac Upp Upp Total Allies 1 | . . 1 . . . . . . . . . . . Largest Group 1 | . . 1 . . . . . . . . . . . Highest-Rated Group 31 | . . 31 . . . . . . . . . . . Highest-Rated Ally 31 | . . 31 . . . . . . . . . . . Total Orders . | . . . . . . . . . . . . . . Ally Attacks 2 | . . 2 . . . . . . . . . . . Total Damage 44 | . . 44 . . . . . . . . . . . Kills . | . . . . . . . . . . . . . . Allies Corrupted . | . . . . . . . . . . . . . . Allies Melted . | . . . . . . . . . . . . . . Intel | -11 -10 -10 -9 -9 -9 -8 -8 -7 -6 -5 -4 -4 -4 ------- Run | Yrd Mat Min Mat Min Exi Min Mat Fac Fac Fac Fac Upp Upp Robot Analysis Total 1 | . 1 . . . . . . . . . . . . Derelict Logs Recovered 3 | . . 1 . 1 . . . . . . . 1 . Drone Launches . | . . . . . . . . . . . . . . Drone Recoveries . | . . . . . . . . . . . . . . Exploration | -11 -10 -10 -9 -9 -9 -8 -8 -7 -6 -5 -4 -4 -4 ------------- Run | Yrd Mat Min Mat Min Exi Min Mat Fac Fac Fac Fac Upp Upp Turns Passed 10718 | 91 1290 342 1519 1129 410 220 913 1541 605 1526 386 522 224 Spaces Moved 6046 | 48 663 174 673 565 254 130 455 849 432 752 342 565 144 Core 172 | 8 . . . . . . . . . 2 162 . . Treads 3135 | . 619 174 673 565 254 130 455 265 . . . . . Legs 621 | 40 44 . . . . . . . . 488 49 . . Wheels 2118 | . . . . . . . . 584 432 262 131 565 144 Hover . | . . . . . . . . . . . . . . Flight . | . . . . . . . . . . . . . . Fastest Speed 50 | 50 160 160 160 160 160 160 160 100 115 120 50 90 150 Average Speed 139 | 163 161 160 160 160 160 160 160 132 115 140 88 90 150 Slowest Speed 1100 | 190 190 160 160 160 160 160 160 320 115 1100 450 90 150 Overloaded Moves . | . . . . . . . . . . . . . . Propulsion Burnouts . | . . . . . . . . . . . . . . Robots Hopped . | . . . . . . . . . . . . . . Cave-ins Triggered . | . . . . . . . . . . . . . . Exploration Rate (%) 45 | 3 98 47 80 98 62 39 36 23 16 16 13 83 25 Regions Visited 13 Branch Regions 6 Pre-discovered Areas . | . . . . . . . . . . . . . . Known Exits Taken 1 | . . . 1 . . . . . . . . . . Unknown Exits Taken 12 | 1 1 1 . 1 1 1 1 1 1 1 1 1 . Scrap Searched 3 | . . . . 2 . . . . . . . 1 . Spaces Dug 93 | . . 10 30 . . . 14 7 9 23 . . . Terrain Destroyed 336 | . . 10 92 13 . . 14 7 9 190 1 . . Melee 16 | . . . . . . . 1 7 8 . . . . Projectile 59 | . . . . . . . . . 1 57 1 . . AOE 261 | . . 10 92 13 . . 13 . . 133 . . . Terrain Rammed . | . . . . . . . . . . . . . . Walls Destroyed . | . . . . . . . . . . . . . . Machines Disabled . | . . . . . . . . . . . . . . Actions | -11 -10 -10 -9 -9 -9 -8 -8 -7 -6 -5 -4 -4 -4 --------- Run | Yrd Mat Min Mat Min Exi Min Mat Fac Fac Fac Fac Upp Upp Total 7625 | 59 805 216 959 756 259 142 558 1150 514 1089 391 577 150 Wait 867 | . 83 16 137 163 . 13 32 181 58 167 10 7 . Move 6033 | 47 662 173 672 564 253 129 454 848 431 751 341 564 144 Hop . | . . . . . . . . . . . . . . Pick Up 82 | 7 9 3 15 1 1 . 8 11 1 16 7 3 . Fast Attach 38 | 5 1 1 5 1 . . 4 5 1 9 5 1 . Attach 55 | . 1 . 7 . . . 6 3 3 22 6 2 5 Detach 6 | . . . . . 1 . . . . 3 2 . . Swap 92 | . 7 2 21 7 1 . 5 18 5 26 . . . Drop 71 | . 4 4 16 2 3 . 5 18 1 14 4 . . Fire 360 | . 37 17 86 17 . . 41 58 6 81 16 . 1 Melee 17 | . . . . . . . 2 7 8 . . . . Ram 1 | . . . . . . . . 1 . . . . . Kick . | . . . . . . . . . . . . . . Crush 3 | . 1 . . 1 . . 1 . . . . . . Escape Stasis . | . . . . . . . . . . . . . . Rewire . | . . . . . . . . . . . . . . Trap . | . . . . . . . . . . . . . . Miscellaneous . | . . . . . . . . . . . . . . Route ------- -11/Scrapyard -10/Materials (discovered 5 exits: *Mat x3 / [*Min] / [*Sub]) -10/Mines (discovered 2 exits: *Mat x2) -9/Materials (discovered 5 exits: *Mat x2 / *Min x2 / *Sto) -9/Mines (discovered 3 exits: *Mat x2 / *Exi) -9/Exiles (discovered 2 exits: [*Min x2]) -8/Mines -8/Materials -7/Factory (discovered 2 exits: *Fac / Low) -6/Factory -5/Factory -4/Factory -4/Upper Caves -4/Upper Caves History --------- Turn | Location | Event 8 | -11/Scrapyard | Discovered new exit (range 15) 92 | -11/Scrapyard | Entered Materials 306 | -10/Materials | Build established: Mutant 392 | -10/Materials | Discovered new exit (range 15) 626 | -10/Materials | Discovered new exit (range 8) 823 | -10/Materials | Core integrity fell below 50% 906 | -10/Materials | Discovered new exit (range 7) 1087 | -10/Materials | Discovered new exit (range 7) 1279 | -10/Materials | Discovered new exit (range 6) 1382 | -10/Materials | Entered Mines 1389 | -10/Mines | Received a Rocket Launcher from a helpful Derelict 1405 | -10/Mines | Met a Derelict bent on vengeance 1410 | -10/Mines | Assembled infested the area 1411 | -10/Mines | Learned Materials stockpile data 1604 | -10/Mines | Escorted by a lone wolf Derelict 1647 | -10/Mines | Discovered new exit (range 9) 1718 | -10/Mines | Discovered new exit (range 5) 1723 | -10/Mines | Core integrity fell below 20% 1724 | -10/Mines | Entered Materials 1724 | -9/Materials | Evolved 2 slots: Propulsion x1, Utility x1 2243 | -9/Materials | Discovered new exit (range 11) 2316 | -9/Materials | Discovered new exit (range 5) 2347 | -9/Materials | Identified exit to Mines 2347 | -9/Materials | Identified exit to Storage 2539 | -9/Materials | Destroyed 10 combat bots 2540 | -9/Materials | Lost 4 parts (1p1n1u1w) 2755 | -9/Materials | Build established: Scavenger-Mutant 2991 | -9/Materials | Discovered new exit (range 10) 3243 | -9/Materials | Entered Mines 3772 | -9/Mines | Discovered new exit (range 7) 4189 | -9/Mines | Discovered new exit (range 15) 4364 | -9/Mines | Deemed a non-threat by the Exiles lab entrance 4366 | -9/Mines | Discovered new exit (range 5) 4372 | -9/Mines | Entered Exiles 4411 | -9/Exiles | Discovered new exit (range 15) 4428 | -9/Exiles | Met 8R-AWN 4460 | -9/Exiles | Met EX-HEX 4508 | -9/Exiles | Met EX-BIN 4532 | -9/Exiles | Aligned with FarCom system 4533 | -9/Exiles | Given EX-Vault access code 4601 | -9/Exiles | Opened EX-Vault 4611 | -9/Exiles | Found AWS/Gauss 4646 | -9/Exiles | Warned to stay clear of 0b10 Research branches 4668 | -9/Exiles | Exiles lab attacked by MAIN.C 4766 | -9/Exiles | Discovered new exit (range 12) 4782 | -9/Exiles | Left Exiles lab with AWS/Gauss 4782 | -9/Exiles | Entered Mines 4978 | -8/Mines | Discovered new exit (range 11) 5002 | -8/Mines | Entered Materials 5002 | -8/Materials | Evolved 2 slots: Utility x1, Weapon x1 5867 | -8/Materials | Discovered new exit (range 16) 5915 | -8/Materials | Entered Factory 5915 | -7/Factory | Evolved 2 slots: Propulsion x1, Weapon x1 5916 | -7/Factory | Identified exit to Lower Caves 5957 | -7/Factory | Build established: Tank 6755 | -7/Factory | Build established: Skirmisher 7060 | -7/Factory | Garrison activated, responded to threat 7397 | -7/Factory | Discovered new exit (range 16) 7456 | -7/Factory | Entered another Factory area 7456 | -6/Factory | Evolved 2 slots: Utility x2 7578 | -6/Factory | Spotted B-75 Beast 8024 | -6/Factory | Discovered new exit (range 7) 8061 | -6/Factory | Entered another Factory area 8061 | -5/Factory | Evolved 2 slots: Power x1, Propulsion x1 8090 | -5/Factory | Lost 4 parts (2u2w) 8475 | -5/Factory | Build established: Gunner 8633 | -5/Factory | Destroyed 14 combat bots 8690 | -5/Factory | Cargo convoy interrupted 8743 | -5/Factory | Found Prototype Launcher 8744 | -5/Factory | Destroyed 9 combat bots 8786 | -5/Factory | Identified Ragnarok Missile Launcher 8845 | -5/Factory | Found Ragnarok Missile Launcher 9049 | -5/Factory | Found Ragnarok Missile Launcher 9097 | -5/Factory | Build established: Skirmisher 9380 | -5/Factory | Discovered new exit (range 18) 9412 | -5/Factory | Lost 3 parts (2n1u) 9515 | -5/Factory | Core integrity fell below 50% 9553 | -5/Factory | Core integrity fell below 20% 9561 | -5/Factory | First assault squad dispatched 9587 | -5/Factory | Entered another Factory area 9587 | -4/Factory | Evolved 2 slots: Utility x2 9617 | -4/Factory | Lost 19 parts (3p4n4u8w) 9777 | -4/Factory | Build established: Mutant 9881 | -4/Factory | Lost 6 parts (2p2n1u1w) 9921 | -4/Factory | Lost 7 parts (2p1n4w) 9929 | -4/Factory | Core integrity fell below 50% 9939 | -4/Factory | Core integrity fell below 20% 9969 | -4/Factory | Discovered new exit (range 9) 9973 | -4/Factory | Entered Upper Caves 10164 | -4/Upper Caves | Spotted B-86 Titan 10237 | -4/Upper Caves | Encountered a Warlord checkpoint 10305 | -4/Upper Caves | Learned location of 1 exit from Proximity Caves 10419 | -4/Upper Caves | Attracted the attention of an 0b10 checkpoint 10487 | -4/Upper Caves | Discovered new exit (range 10) 10495 | -4/Upper Caves | Entered another Upper Caves area 10634 | -4/Upper Caves | Spotted B-86 Titan 10719 | -4/Upper Caves | Destroyed by P-70 Sage with High-powered Shock Rifle Last Messages --------------- 10241_ HF-ZXR(k) breaks down the debris. 10245_ OS-I1R(k) breaks down the debris. 10254_ LCIAI&:7CG